[Event "EIWCC 2017"]
[Site "Riga"]
[Date "2017.04.15"]
[Round "5"]
[White "Papp, Petra"]
[Black "Sandu, Mihaela"]
[Result "0-1"]
[ECO "B41"]
[WhiteElo "2378"]
[BlackElo "2261"]
[Annotator "NA"]
[PlyCount "80"]
[EventDate "2017.??.??"]
[EventType "swiss"]
[EventCountry "LAT"]
[SourceTitle "playchess.com"]
[Source "ChessBase"]
[SourceQuality "1"]
[TimeControl "40/5400+30:1800+30"]

1. e4 {[%emt 0:00:00]} c5 {[%emt 0:00:15]} 2. Nf3 {[%emt 0:00:00]} e6 {[%emt 0:00:16]} 3. d4 {[%emt 0:00:00]} cxd4 {[%emt 0:00:03]} 4. Nxd4 {[%emt 0:00:08]} a6 {[%emt 0:00:21]} 5. c4 {[%emt 0:00:35]} Nf6 {[%emt 0:00:42]} 6. Nc3 {[%emt 0:00:13]} Qc7 {[%emt 0:00:08]} 7. Be2 {[%emt 0:02:35]} Bb4 {[%emt 0:04:48]} 8. Nc2 {[%emt 0:01:40]} Be7 {[%emt 0:01:32]} 9. O-O {[%emt 0:02:08]} O-O {[%emt 0:06:34]} 10. f4 {[%emt 0:01:36]} d6 {[%emt 0:02:26]} 11. Qd3 {[%emt 0:06:11]} Bd7 {[%emt 0:08:15]} 12. Bf3 {[%emt 0:16:19]} Bc6 {[%emt 0:17:39]} 13. b4 {[%emt 0:09:43]} Nbd7 {[%emt 0:06:42]} 14. Bb2 {[%emt 0:04:35]} Rac8 {[%emt 0:09:14]} 15. Rac1 {[%emt 0:02:00]} b6 {[%emt 0:06:31]} 16. g3 {[%emt 0:04:31]} Rfe8 {[%emt 0:01:44]} 17. a3 {[%emt 0:00:18]} Bf8 {[%emt 0:01:31]} 18. Bg2 {[%emt 0:02:04]} Qb8 {[%emt 0:00:48]} 19. Rfd1 {[%emt 0:12:41]} Ba8 {[%emt 0:03:15]} 20. Qe2 {[%emt 0:01:59]} b5 {[%emt 0:08:12]} 21. cxb5 {[%emt 0:05:54]} axb5 {[%emt 0:00:18]} 22. g4 {[%emt 0:04:44]} g6 {[%emt 0:03:01]} 23. Rd3 {[%emt 0:04:53]} Nb6 {[%emt 0:03:42]} 24. Ne3 {[%emt 0:02:46]} Nc4 {[%emt 0:02:11]} 25. Nxc4 {[%emt 0:00:34]} Rxc4 {[%emt 0:00:08]} 26. Rcd1 {[%emt 0:01:36]} Qb6+ {[%emt 0:04:15]} 27. Kh1 {[%emt 0:00:49]} Rec8 {[%emt 0:01:18]} 28. Ba1 {[%emt 0:03:11]} Be7 {[%emt 0:00:37]} 29. Rh3 {[%emt 0:01:20]} d5 {[%emt 0:02:22]} 30. e5 {[%emt 0:03:52]} Ne4 {[%emt 0:00:12]} 31. Nxe4 {[%emt 0:02:39]} dxe4 {[%emt 0:00:07]} 32. Qe3 {[%emt 0:01:53]} Qc7 {[%emt 0:02:14]} 33. Bb2 {[%emt 0:00:58]} Rd8 {[%emt 0:01:16]} 34. Rb1 {[%emt 0:02:01]} Rc2 {[%emt 0:01:08]} 35. f5 {[%emt 0:00:33]} Rd3 {[%emt 0:00:19]} 36. Qe1 {[%emt 0:00:30]} Rxh3 {[%emt 0:00:16]} 37. f6 {[%emt 0:00:29]} Bxf6 {[%emt 0:01:08]} 38. Qf1 {[%emt 0:00:29]} Bxe5 {[%emt 0:00:40]} 39. Bxe5 {[%emt 0:00:30]} Qxe5 {[%emt 0:00:16]} 40. Qg1 {[%emt 0:00:00]} e3 {[%emt 0:00:48]} 0-1

[Event "EIWCC 2017"]
[Site "Riga"]
[Date "2017.04.15"]
[Round "5"]
[White "Kovanova, Baira"]
[Black "Unuk, Laura"]
[Result "1-0"]
[ECO "D37"]
[WhiteElo "2376"]
[BlackElo "2275"]
[Annotator "NA"]
[PlyCount "69"]
[EventDate "2017.??.??"]
[EventType "swiss"]
[EventCountry "LAT"]
[SourceTitle "playchess.com"]
[Source "ChessBase"]
[SourceQuality "1"]
[TimeControl "40/5400+30:1800+30"]

1. c4 {[%emt 0:00:00]} Nf6 {[%emt 0:00:41]} 2. Nc3 {[%emt 0:00:00]} e6 {[%emt 0:09:15]} 3. Nf3 {[%emt 0:00:28]} d5 {[%emt 0:00:21]} 4. d4 {[%emt 0:00:35]} Be7 {[%emt 0:00:24]} 5. Bf4 {[%emt 0:00:08]} O-O {[%emt 0:00:52]} 6. e3 {[%emt 0:00:05]} c5 {[%emt 0:00:10]} 7. dxc5 {[%emt 0:00:22]} Bxc5 {[%emt 0:00:08]} 8. Qc2 {[%emt 0:00:19]} Nc6 {[%emt 0:01:29]} 9. a3 {[%emt 0:00:06]} Qa5 {[%emt 0:00:29]} 10. Be2 {[%emt 0:00:35]} dxc4 {[%emt 0:31:49]} 11. Bxc4 {[%emt 0:00:13]} a6 {[%emt 0:00:38]} 12. O-O {[%emt 0:01:14]} Be7 {[%emt 0:00:34]} 13. b4 {[%emt 0:05:03]} Qh5 {[%emt 0:01:02]} 14. Be2 $16 {[%emt 0:13:47]} Qg6 {[%emt 0:05:11]} 15. Bd3 {[%emt 0:01:02]} Qh5 {[%emt 0:02:01]} 16. Ne2 {[%emt 0:03:38]} Bxb4 {[%emt 0:17:52]} 17. axb4 {[%emt 0:01:20]} Nxb4 {[%emt 0:00:17]} 18. Qb3 {[%emt 0:00:32]} Nxd3 {[%emt 0:00:52]} 19. Qxd3 {[%emt 0:00:03]} b5 {[%emt 0:00:19]} 20. Ng3 {[%emt 0:05:54]} Qd5 {[%emt 0:00:20]} 21. Qa3 {[%emt 0:03:43]} a5 {[%emt 0:02:32]} 22. Rfd1 {[%emt 0:02:50]} Qb7 {[%emt 0:00:37]} 23. Qc5 {[%emt 0:03:07]} Bd7 {[%emt 0:02:36]} 24. Be5 {[%emt 0:08:43]} Rfc8 {[%emt 0:02:41]} 25. Qd4 {[%emt 0:01:20]} Rc4 {[%emt 0:00:53]} 26. Qd2 {[%emt 0:01:17]} Bc6 {[%emt 0:02:44]} 27. Rxa5 {[%emt 0:03:52]} Nd7 {[%emt 0:03:13]} 28. Rxa8+ {[%emt 0:01:17]} Qxa8 {[%emt 0:00:04]} 29. e4 {[%emt 0:02:03]} f6 {[%emt 0:01:17]} 30. Bb2 {[%emt 0:01:09]} Nc5 {[%emt 0:00:58]} 31. Qd6 {[%emt 0:01:19]} Bxe4 {[%emt 0:01:53]} 32. Nxe4 {[%emt 0:01:13]} Qxe4 {[%emt 0:00:18]} 33. Nd2 {[%emt 0:01:45]} Qe2 {[%emt 0:01:43]} 34. Nxc4 {[%emt 0:00:12]} Ne4 {[%emt 0:00:45]} 35. Qxe6+ {[%emt 0:00:14]} 1-0

[Event "EIWCC 2017"]
[Site "Riga"]
[Date "2017.04.15"]
[Round "5"]
[White "Arakhamia-Grant, Ketevan"]
[Black "Pavlidou, Ekaterini"]
[Result "1-0"]
[ECO "B24"]
[WhiteElo "2374"]
[BlackElo "2180"]
[Annotator "NA"]
[PlyCount "85"]
[EventDate "2017.??.??"]
[EventType "swiss"]
[EventCountry "LAT"]
[SourceTitle "playchess.com"]
[Source "ChessBase"]
[SourceQuality "1"]
[TimeControl "40/5400+30:1800+30"]

1. e4 {[%emt 0:00:00]} c5 {[%emt 0:00:20]} 2. Nc3 {[%emt 0:00:00]} Nc6 {[%emt 0:01:17]} 3. Bb5 {[%emt 0:00:00]} g6 {[%emt 0:01:14]} 4. Bxc6 {[%emt 0:00:40]} dxc6 {[%emt 0:00:37]} 5. d3 {[%emt 0:00:14]} Bg7 {[%emt 0:00:13]} 6. Be3 {[%emt 0:00:25]} b6 {[%emt 0:01:13]} 7. Qd2 {[%emt 0:00:18]} e5 {[%emt 0:01:17] LiveBook: 74 Games B23: Closed Sicilian: Lines without g3} 8. h3 {[%emt 0:01:44]} Qe7 {[%emt 0:03:02]} 9. Nge2 {[%emt 0:11:29]} Nf6 {[%emt 0:09:09]} 10. Bh6 {[%emt 0:02:40]} O-O {[%emt 0:00:16]} 11. g4 $146 {[%emt 0:05:55]} (11. Bxg7 Kxg7 12. O-O Nd7 13. Rae1 f6 14. Kh1 Ba6 15. f4 exf4 16. Nxf4 {1-0 (37) Kasimdzhanov,R (2664)-Afek,Y (2387) Vlissingen 2003}) 11... Rd8 {[%emt 0:02:09]} 12. O-O-O {[%emt 0:12:11]} b5 {[%emt 0:03:48]} 13. Bxg7 {[%emt 0:01:44]} Kxg7 {[%emt 0:00:07]} 14. Ng3 {[%emt 0:01:06]} a5 {[%emt 0:04:34]} 15. f4 {[%emt 0:14:24]} exf4 {[%emt 0:06:05]} 16. Qxf4 {[%emt 0:00:05]} a4 {[%emt 0:06:42]} 17. e5 $11 {[%emt 0:07:21]} Nd5 {[%emt 0:25:47]} 18. Nxd5 {[%emt 0:00:12]} Rxd5 {[%emt 0:00:06]} 19. Rde1 {[%emt 0:00:22]} Rd4 {[%emt 0:04:20]} 20. Ne4 {[%emt 0:02:24]} Be6 {[%emt 0:02:49]} 21. Qf6+ {[%emt 0:16:32]} Qxf6 {[%emt 0:00:06]} 22. exf6+ {[%emt 0:00:04]} Kf8 {[%emt 0:00:13]} 23. Nxc5 {[%emt 0:01:08]} Bxa2 {[%emt 0:01:37]} 24. Re7 {[%emt 0:04:32]} h6 {[%emt 0:05:53]} 25. Rhe1 {[%emt 0:01:50]} Rad8 {[%emt 0:01:44]} 26. c3 {[%emt 0:07:15]} R4d5 {[%emt 0:01:04]} 27. d4 {[%emt 0:00:07]} g5 {[%emt 0:04:16]} 28. Rc7 {[%emt 0:01:11]} Kg8 {[%emt 0:04:28]} 29. Ree7 {[%emt 0:01:08]} Rxc5 {[%emt 0:01:22]} 30. dxc5 {[%emt 0:00:23]} Bb3 {[%emt 0:02:21]} 31. Red7 {[%emt 0:01:50]} Re8 {[%emt 0:00:14]} 32. Re7 {[%emt 0:00:20]} Rd8 {[%emt 0:00:05]} 33. Rcd7 {[%emt 0:01:49]} Rc8 {[%emt 0:00:07]} 34. Kd2 {[%emt 0:00:49]} Kh7 {[%emt 0:03:39]} 35. Rc7 {[%emt 0:01:03]} Rd8+ {[%emt 0:00:45]} 36. Red7 {[%emt 0:00:56]} Rxd7+ {[%emt 0:01:53]} 37. Rxd7 {[%emt 0:00:05]} Bc4 {[%emt 0:00:40]} 38. Ke3 {[%emt 0:03:42]} Bf1 {[%emt 0:01:47]} 39. Rxf7+ {[%emt 0:00:20]} Kg6 {[%emt 0:00:07]} 40. Rc7 {[%emt 0:00:00]} Bxh3 {[%emt 0:00:41]} 41. Kf3 {[%emt 0:01:29]} Bf1 {[%emt 0:03:34]} 42. Rxc6 {[%emt 0:00:41]} Bc4 {[%emt 0:00:49]} 43. Rd6 {[%emt 0:00:37]} 1-0

[Event "EIWCC 2017"]
[Site "Riga"]
[Date "2017.04.15"]
[Round "5"]
[White "Yildiz, Betul Cemre"]
[Black "Hapala, Elisabeth"]
[Result "1-0"]
[ECO "D11"]
[WhiteElo "2367"]
[BlackElo "2091"]
[Annotator "NA"]
[PlyCount "61"]
[EventDate "2017.??.??"]
[EventType "swiss"]
[EventCountry "LAT"]
[SourceTitle "playchess.com"]
[Source "ChessBase"]
[SourceQuality "1"]
[TimeControl "40/5400+30:1800+30"]

1. d4 {[%emt 0:00:00]} d5 {[%emt 0:00:06]} 2. c4 {[%emt 0:00:00]} c6 {[%emt 0:00:02]} 3. Nf3 {[%emt 0:00:00]} Nf6 {[%emt 0:00:05]} 4. e3 {[%emt 0:00:04]} g6 {[%emt 0:00:25]} 5. Nbd2 {[%emt 0:00:30]} Bg7 {[%emt 0:00:15]} 6. Be2 {[%emt 0:01:32]} O-O {[%emt 0:00:22]} 7. O-O {[%emt 0:00:24]} Bg4 {[%emt 0:00:43]} 8. h3 {[%emt 0:03:06]} Bxf3 {[%emt 0:00:25]} 9. Nxf3 {[%emt 0:00:03]} e6 {[%emt 0:02:08]} 10. b4 {[%emt 0:04:38]} Nbd7 {[%emt 0:07:30]} 11. Qb3 {[%emt 0:04:43]} Ne4 {[%emt 0:10:29]} 12. Bb2 {[%emt 0:01:34]} a6 {[%emt 0:01:27]} 13. a4 {[%emt 0:04:46]} Nb6 {[%emt 0:12:06]} 14. c5 {[%emt 0:06:58]} Nd7 {[%emt 0:00:04]} 15. b5 {[%emt 0:00:12]} axb5 {[%emt 0:00:16]} 16. axb5 {[%emt 0:00:07]} Qc7 {[%emt 0:03:42]} 17. Ra3 {[%emt 0:14:37]} Rxa3 {[%emt 0:01:29]} 18. Qxa3 {[%emt 0:00:27]} e5 {[%emt 0:16:22]} 19. Ra1 {[%emt 0:08:40]} exd4 {[%emt 0:01:21]} 20. exd4 {[%emt 0:00:03]} Re8 {[%emt 0:12:03]} 21. Bf1 {[%emt 0:00:25]} Qb8 {[%emt 0:10:40]} 22. Ra2 {[%emt 0:01:56]} Bf6 {[%emt 0:05:40]} 23. Bc1 {[%emt 0:08:13]} Nf8 {[%emt 0:02:55]} 24. Rb2 {[%emt 0:06:43]} Qc8 {[%emt 0:02:19]} 25. bxc6 {[%emt 0:03:34]} bxc6 {[%emt 0:00:07]} 26. Rb6 {[%emt 0:01:28]} Nd7 {[%emt 0:06:28]} 27. Ra6 {[%emt 0:00:59]} Nb8 {[%emt 0:00:32]} 28. Ra7 {[%emt 0:01:10]} Qf5 {[%emt 0:02:03]} 29. Be3 {[%emt 0:03:45]} h5 {[%emt 0:00:18]} 30. Rb7 {[%emt 0:00:54]} Bd8 {[%emt 0:02:29]} 31. Rxb8 {[%emt 0:00:38]} 1-0

[Event "EIWCC 2017"]
[Site "Riga"]
[Date "2017.04.15"]
[Round "5"]
[White "Babiy, Olga"]
[Black "Zherebtsova, Alexandra"]
[Result "1/2-1/2"]
[ECO "C88"]
[WhiteElo "2359"]
[BlackElo "2222"]
[Annotator "NA"]
[PlyCount "92"]
[EventDate "2017.??.??"]
[EventType "swiss"]
[EventCountry "LAT"]
[SourceTitle "playchess.com"]
[Source "ChessBase"]
[SourceQuality "1"]
[TimeControl "40/5400+30:1800+30"]

1. e4 {[%emt 0:00:00]} e5 {[%emt 0:00:04]} 2. Nf3 {[%emt 0:00:00]} Nc6 {[%emt 0:00:09]} 3. Bb5 {[%emt 0:00:00]} a6 {[%emt 0:00:19]} 4. Ba4 {[%emt 0:00:01]} Nf6 {[%emt 0:00:33]} 5. O-O {[%emt 0:00:12]} Be7 {[%emt 0:00:32]} 6. Re1 {[%emt 0:00:07]} b5 {[%emt 0:00:07]} 7. Bb3 {[%emt 0:00:04]} d6 {[%emt 0:00:04]} 8. h3 {[%emt 0:01:26]} Na5 {[%emt 0:14:18]} 9. c3 {[%emt 0:01:19]} Nxb3 {[%emt 0:00:31]} 10. axb3 {[%emt 0:00:06]} Bb7 {[%emt 0:01:35]} 11. d3 {[%emt 0:00:07]} O-O {[%emt 0:04:06] LiveBook: 4 Games} 12. Nbd2 {[%emt 0:00:45]} Re8 {[%emt 0:05:14]} 13. Nf1 {[%emt 0:01:16]} h6 {[%emt 0:04:24]} 14. c4 {[%emt 0:03:52] C90: Closed Ruy Lopez with 7...d6: Early deviations} Bf8 {[%emt 0:04:21]} 15. Bd2 {[%emt 0:02:55]} Qd7 $146 {[%emt 0:09:14]} (15... g6 16. N3h2 Nd7 17. Re3 Bg7 18. Rg3 {½-½ (34) Dobrijevic,M (2220)-Todorovic,G (2476) Belgrade 2015}) 16. N3h2 {[%emt 0:02:01]} Kh7 {[%emt 0:09:25]} 17. Qf3 {[%emt 0:02:10]} Qe6 {[%emt 0:04:58]} 18. Ne3 {[%emt 0:05:15]} c6 {[%emt 0:05:17]} 19. Bc3 {[%emt 0:14:24]} Nd7 {[%emt 0:05:01]} 20. b4 {[%emt 0:02:40]} g6 {[%emt 0:05:32]} 21. Rad1 {[%emt 0:04:31]} Bg7 {[%emt 0:00:47]} 22. Qg3 {[%emt 0:00:17]} Nf6 {[%emt 0:03:52]} 23. Qf3 {[%emt 0:05:40]} (23. Qh4 $11) 23... Rf8 {[%emt 0:05:19]} 24. Nhf1 {[%emt 0:11:56]} Rae8 {[%emt 0:02:01]} 25. Nd2 {[%emt 0:02:39]} Nd7 {[%emt 0:04:05]} 26. Nb3 $11 {[%emt 0:02:32]} f5 {[%emt 0:02:21]} 27. Na5 {[%emt 0:08:54]} Ba8 {[%emt 0:01:00]} 28. Nf1 {[%emt 0:02:31]} fxe4 {[%emt 0:00:44]} 29. Qxe4 {[%emt 0:00:36]} Qf7 {[%emt 0:02:36]} 30. Qe2 {[%emt 0:01:46]} c5 {[%emt 0:01:43]} 31. Ng3 {[%emt 0:00:26]} Nb6 {[%emt 0:01:36]} 32. Ne4 {[%emt 0:01:41]} Qc7 {[%emt 0:00:32]} 33. bxc5 {[%emt 0:01:32]} dxc5 {[%emt 0:00:08]} 34. b4 {[%emt 0:00:10]} Na4 {[%emt 0:00:48]} 35. Bd2 {[%emt 0:01:05]} Rd8 {[%emt 0:02:22]} 36. Rb1 {[%emt 0:05:09]} cxb4 {[%emt 0:01:20]} 37. Bxb4 {[%emt 0:00:16]} Rf7 {[%emt 0:00:24]} 38. Rbc1 {[%emt 0:04:06]} Qd7 {[%emt 0:00:48]} 39. Nd6 {[%emt 0:00:44]} Rf4 {[%emt 0:00:36]} 40. Qd2 {[%emt 0:00:00]} bxc4 {[%emt 0:01:08]} 41. Rxc4 {[%emt 0:16:25]} Nb6 {[%emt 0:06:19]} 42. Rxf4 {[%emt 0:08:07]} exf4 {[%emt 0:00:17]} 43. Nac4 {[%emt 0:07:13]} Qc6 {[%emt 0:10:47]} 44. f3 {[%emt 0:03:04]} Nd5 {[%emt 0:02:11]} 45. Ba3 {[%emt 0:01:47]} Ne3 {[%emt 0:04:03]} 46. Qe2 {[%emt 0:03:26]} Bd4 {[%emt 0:02:10]} 1/2-1/2

[Event "EIWCC 2017"]
[Site "Riga"]
[Date "2017.04.15"]
[Round "5"]
[White "Brunello, Marina"]
[Black "Gaponenko, Inna"]
[Result "0-1"]
[ECO "B73"]
[WhiteElo "2354"]
[BlackElo "2416"]
[Annotator "NA"]
[PlyCount "48"]
[EventDate "2017.??.??"]
[EventType "swiss"]
[EventCountry "LAT"]
[SourceTitle "playchess.com"]
[Source "ChessBase"]
[SourceQuality "1"]
[TimeControl "40/5400+30:1800+30"]

{[%evp 11,41,8,31,32767,32767,32767,32767,-10,0,-8,-12,-8,32767,32767,32767,32767,-10,-5,-7,-7,-11,-4,0,-19,-4,-33,-19,32767,32767,32767,-251,-287]} 1. e4 {[%emt 0:00:00]} c5 {[%emt 0:00:05]} 2. Nf3 {[%emt 0:00:00]} Nc6 {[%emt 0:00:07]} 3. d4 {[%emt 0:00:00]} cxd4 {[%emt 0:00:08]} 4. Nxd4 {[%emt 0:00:00]} Nf6 {[%emt 0:00:50]} 5. Nc3 {[%emt 0:00:02]} d6 {[%emt 0:00:37]} 6. Be2 {[%emt 0:01:03]} g6 {[%emt 0:01:13]} 7. Be3 {[%emt 0:13:59]} Bg7 {[%emt 0:00:23]} 8. O-O {[%emt 0:04:31]} O-O {[%emt 0:00:30]} 9. f3 {[%emt 0:01:38]} d5 {[%emt 0:03:08] LiveBook: 7 Games} 10. Nxd5 {[%emt 0:04:57] B73: Sicilian Dragon: Classical System without 9 Nb3} (10. exd5 Nxd5 11. Nxc6 bxc6 12. Nxd5 cxd5 13. c3 e5 14. Bc5 Re8 15. b4 Bb7 16. Qd2 Qc7 17. Rac1 a5 {½-½ (31) Roos,J (2406)-Poli,G (2495) ICCF email 2008}) 10... Nxd5 {[%emt 0:00:56]} 11. exd5 {[%emt 0:00:08]} Qxd5 {[%emt 0:06:21]} 12. Nxc6 {[%emt 0:00:23]} Qxc6 {[%emt 0:03:57]} 13. c3 {[%emt 0:01:10]} e5 {[%emt 0:18:11]} 14. Qe1 {[%emt 0:09:24]} Be6 {[%emt 0:14:44]} 15. Qf2 {[%emt 0:00:54]} Rfd8 $146 {[%emt 0:09:44]} (15... a6 16. Bb6 f5 17. Rfd1 Bh6 {0-1 (32) Mikalsen,H (1990)-Kravec,P (2156) Albena 2016}) 16. a4 {[%emt 0:22:21]} a6 {[%emt 0:02:22]} 17. a5 {[%emt 0:05:37]} Bf8 {[%emt 0:01:30]} 18. Rfc1 {[%emt 0:01:37]} Rac8 {[%emt 0:12:57]} 19. b4 {[%emt 0:05:02]} Bc4 {[%emt 0:00:39]} 20. Bb6 {[%emt 0:01:11]} Rd2 {[%emt 0:04:44]} 21. Re1 $19 {[%emt 0:00:06]} Rxe2 {[%emt 0:02:09]} 22. Rxe2 {[%emt 0:00:12]} Bxe2 {[%emt 0:00:06]} 23. Qxe2 {[%emt 0:00:03]} Qxc3 {[%emt 0:00:08]} 24. Re1 {[%emt 0:02:40]} Bxb4 {[%emt 0:01:18]} 0-1

[Event "EIWCC 2017"]
[Site "Riga"]
[Date "2017.04.15"]
[Round "5"]
[White "Worek, Joanna"]
[Black "Grapsa, Georgia"]
[Result "0-1"]
[ECO "E33"]
[WhiteElo "2330"]
[BlackElo "2049"]
[Annotator "NA"]
[PlyCount "86"]
[EventDate "2017.??.??"]
[EventType "swiss"]
[EventCountry "LAT"]
[SourceTitle "playchess.com"]
[Source "ChessBase"]
[SourceQuality "1"]
[TimeControl "40/5400+30:1800+30"]

1. d4 {[%emt 0:00:00]} Nf6 {[%emt 0:00:05]} 2. c4 {[%emt 0:00:00]} e6 {[%emt 0:00:03]} 3. Nc3 {[%emt 0:00:00]} Bb4 {[%emt 0:00:05]} 4. Qc2 {[%emt 0:00:00]} Nc6 {[%emt 0:00:04]} 5. Nf3 {[%emt 0:00:14]} d6 {[%emt 0:00:06]} 6. Bd2 {[%emt 0:00:18]} O-O {[%emt 0:00:15]} 7. a3 {[%emt 0:00:20]} Bxc3 {[%emt 0:00:05]} 8. Bxc3 {[%emt 0:00:04]} Re8 {[%emt 0:00:17]} 9. e3 {[%emt 0:15:51]} e5 {[%emt 0:02:14]} 10. d5 {[%emt 0:00:35]} Nb8 {[%emt 0:05:05]} 11. Nd2 {[%emt 0:01:48]} c6 {[%emt 0:08:20]} 12. e4 {[%emt 0:04:03]} a5 {[%emt 0:04:45]} 13. Be2 {[%emt 0:02:24]} Na6 {[%emt 0:03:35]} 14. O-O {[%emt 0:00:26]} Bd7 {[%emt 0:04:02]} 15. b4 {[%emt 0:05:50]} cxd5 {[%emt 0:01:11]} 16. exd5 {[%emt 0:04:30]} a4 {[%emt 0:08:41]} 17. Rad1 {[%emt 0:10:06]} Qc8 {[%emt 0:00:51]} 18. Bd3 {[%emt 0:13:23]} b5 {[%emt 0:09:54]} 19. cxb5 {[%emt 0:07:59]} Nc7 {[%emt 0:06:56]} 20. b6 {[%emt 0:09:43]} Nb5 {[%emt 0:04:39]} 21. Nb1 {[%emt 0:01:46]} Qb7 {[%emt 0:06:42]} 22. Bf5 {[%emt 0:02:21]} Rac8 {[%emt 0:04:47]} 23. Bxd7 {[%emt 0:00:45]} Nxd7 {[%emt 0:00:08]} 24. Qd3 {[%emt 0:00:57]} Qxb6 {[%emt 0:00:28]} 25. Bd2 {[%emt 0:02:33]} e4 {[%emt 0:09:47]} 26. Qh3 {[%emt 0:00:42]} Ne5 {[%emt 0:00:36]} 27. Rfe1 {[%emt 0:11:58]} Nd3 {[%emt 0:02:00]} 28. Re3 {[%emt 0:00:15]} g6 {[%emt 0:04:51]} 29. Qh4 {[%emt 0:00:47]} Qd4 {[%emt 0:01:36]} 30. Rh3 {[%emt 0:01:58]} h5 {[%emt 0:01:13]} 31. Be3 {[%emt 0:01:14]} Qxd5 {[%emt 0:01:08]} 32. Rg3 {[%emt 0:00:01]} Re5 {[%emt 0:02:24]} 33. Qf6 {[%emt 0:00:43]} Qe6 {[%emt 0:01:26]} 34. Qxe6 {[%emt 0:00:58]} Rxe6 {[%emt 0:00:06]} 35. f3 {[%emt 0:01:50]} d5 {[%emt 0:00:45]} 36. fxe4 {[%emt 0:00:07]} dxe4 {[%emt 0:00:07]} 37. Rf1 {[%emt 0:01:05]} Nc3 {[%emt 0:04:56]} 38. Nd2 {[%emt 0:00:33]} Ne2+ {[%emt 0:00:09]} 39. Kh1 {[%emt 0:00:14]} Nxg3+ {[%emt 0:00:07]} 40. hxg3 {[%emt 0:00:00]} Rc2 {[%emt 0:03:38]} 41. b5 {[%emt 0:00:13]} f5 {[%emt 0:02:43]} 42. b6 {[%emt 0:01:15]} Rxd2 {[%emt 0:00:53]} 43. Bxd2 {[%emt 0:00:14]} Rxb6 {[%emt 0:00:03]} 0-1

[Event "EIWCC 2017"]
[Site "Riga"]
[Date "2017.04.15"]
[Round "5"]
[White "Cosma, Elena-Luminita"]
[Black "Movileanu, Daniela"]
[Result "1/2-1/2"]
[ECO "D78"]
[WhiteElo "2316"]
[BlackElo "2213"]
[Annotator "NA"]
[PlyCount "115"]
[EventDate "2017.??.??"]
[EventType "swiss"]
[EventCountry "LAT"]
[SourceTitle "playchess.com"]
[Source "ChessBase"]
[SourceQuality "1"]
[TimeControl "40/5400+30:1800+30"]

1. d4 {[%emt 0:00:00]} Nf6 {[%emt 0:00:09]} 2. Nf3 {[%emt 0:00:00]} g6 {[%emt 0:00:11]} 3. g3 {[%emt 0:00:00]} Bg7 {[%emt 0:00:20]} 4. Bg2 {[%emt 0:00:00]} d5 {[%emt 0:00:56]} 5. O-O {[%emt 0:00:00]} O-O {[%emt 0:00:11]} 6. c4 {[%emt 0:00:10]} c6 {[%emt 0:04:35]} 7. b3 {[%emt 0:00:06]} Bf5 {[%emt 0:02:18]} 8. Nc3 {[%emt 0:00:10]} Ne4 {[%emt 0:01:50]} 9. Bb2 {[%emt 0:00:16]} a5 {[%emt 0:03:23]} 10. Rc1 {[%emt 0:13:03]} Nxc3 {[%emt 0:09:21]} 11. Bxc3 {[%emt 0:00:04]} Be4 {[%emt 0:00:15]} 12. e3 {[%emt 0:06:48]} Nd7 {[%emt 0:04:31] LiveBook: 4 Games} 13. Qe2 {[%emt 0:01:05]} Nf6 {[%emt 0:04:02]} 14. Rfd1 {[%emt 0:01:57]} Qd6 {[%emt 0:18:04]} 15. Bf1 {[%emt 0:12:02]} a4 {[%emt 0:09:14]} 16. Nd2 {[%emt 0:07:53]} Bf5 {[%emt 0:00:46]} 17. c5 $11 {[%emt 0:06:10]} Qc7 {[%emt 0:03:03]} 18. b4 {[%emt 0:00:31]} Nd7 {[%emt 0:02:26]} 19. g4 {[%emt 0:09:38]} Be6 {[%emt 0:00:33]} 20. f4 {[%emt 0:00:05]} Nf6 {[%emt 0:03:53]} 21. h3 {[%emt 0:04:46]} h5 {[%emt 0:06:21]} 22. g5 {[%emt 0:02:44]} Nd7 {[%emt 0:00:14]} 23. Nf3 {[%emt 0:02:41]} Bf5 {[%emt 0:05:33]} 24. Nh4 {[%emt 0:00:07]} Be4 {[%emt 0:00:09]} 25. Bg2 {[%emt 0:00:23]} Nb8 {[%emt 0:02:24]} 26. Bxe4 {[%emt 0:13:51]} dxe4 {[%emt 0:00:06]} 27. Qg2 {[%emt 0:00:02]} Qd7 {[%emt 0:00:14]} 28. Qxe4 {[%emt 0:00:10]} Qxh3 {[%emt 0:00:28]} 29. Be1 {[%emt 0:00:10]} Na6 {[%emt 0:02:52]} 30. Qf3 {[%emt 0:00:12]} Qe6 {[%emt 0:03:37]} 31. Rc2 {[%emt 0:02:12]} Nc7 {[%emt 0:05:08]} 32. Kh1 {[%emt 0:04:41]} Rad8 {[%emt 0:05:46]} 33. f5 {[%emt 0:01:40]} Qd7 {[%emt 0:01:34]} 34. Rg2 {[%emt 0:04:04]} gxf5 {[%emt 0:02:10]} 35. Nxf5 {[%emt 0:01:00]} Qe6 {[%emt 0:00:29]} 36. e4 {[%emt 0:01:46]} Rfe8 {[%emt 0:00:29]} 37. Bc3 {[%emt 0:01:48]} Qg6 {[%emt 0:00:40]} 38. Nh6+ {[%emt 0:03:14]} Kh7 {[%emt 0:00:20]} 39. Nf5 {[%emt 0:01:36]} Nb5 {[%emt 0:00:26]} 40. Ba1 {[%emt 0:00:00]} e6 {[%emt 0:00:47]} 41. Nxg7 {[%emt 0:01:21]} Kxg7 {[%emt 0:01:25]} 42. d5+ {[%emt 0:01:57]} e5 {[%emt 0:01:02]} 43. d6 {[%emt 0:00:27]} Re6 {[%emt 0:03:04]} 44. Qf5 {[%emt 0:07:57]} Kf8 {[%emt 0:01:15]} 45. Qxg6 {[%emt 0:06:02]} fxg6 {[%emt 0:01:17]} 46. Rf2+ {[%emt 0:00:25]} Kg7 {[%emt 0:02:30]} 47. Rdf1 {[%emt 0:00:06]} Rd7 {[%emt 0:00:05]} 48. Rf8 {[%emt 0:01:09]} a3 {[%emt 0:04:37]} 49. Rb8 {[%emt 0:03:21]} Nd4 {[%emt 0:00:59]} 50. Rff8 {[%emt 0:00:37]} Ne2 {[%emt 0:00:53]} 51. Kh2 {[%emt 0:01:10]} Nd4 {[%emt 0:00:41]} 52. Kg2 {[%emt 0:01:11]} Nc2 {[%emt 0:01:00]} 53. Bc3 {[%emt 0:00:08]} Ne3+ {[%emt 0:00:42]} 54. Kf3 {[%emt 0:00:36]} Nd1 {[%emt 0:00:26]} 55. Ba1 {[%emt 0:02:54]} Nb2 {[%emt 0:00:43]} 56. Ke2 {[%emt 0:00:05]} Nc4 {[%emt 0:01:40]} 57. Rg8+ {[%emt 0:00:11]} Kh7 {[%emt 0:00:07]} 58. Rgd8 {[%emt 0:01:04]} 1/2-1/2